bitfinex/quotes_BTCUSD_20240817
["timestamp","ask_amount","ask_price","bid_price","bid_amount"]
[1723928278859,1e-08,59525.0,59524.0,2.38433357]
[1723928279392,1e-08,59525.0,59524.0,2.45970059]
[1723928279605,1e-08,59525.0,59524.0,2.43844019]
[1723928279810,1e-08,59525.0,59524.0,2.45970027]
[1723928280030,1e-08,59525.0,59524.0,2.43044165]
[1723928280204,1e-08,59525.0,59524.0,2.45970027]
[1723928280405,1e-08,59525.0,59524.0,2.46895552]
[1723928280606,1e-08,59525.0,59524.0,2.46695552]
[1723928280881,1e-08,59525.0,59524.0,2.46895552]
[1723928281959,1e-08,59525.0,59524.0,2.46894821]
[1723928282398,1e-08,59525.0,59524.0,2.39358146]
[1723928282614,1e-08,59525.0,59524.0,2.37232133]
[1723928282817,1e-08,59525.0,59524.0,2.39358136]
[1723928283026,1e-08,59525.0,59524.0,2.30168136]
[1723928283234,1e-08,59525.0,59524.0,2.39558136]
[1723928286302,1e-08,59525.0,59524.0,2.49607036]
[1723928286516,1e-08,59525.0,59524.0,2.49607934]
[1723928286713,1e-08,59525.0,59524.0,2.52120407]
[1723928286851,1e-08,59525.0,59524.0,2.45447724]
[1723928287260,1e-08,59525.0,59524.0,2.58010099]
[1723928288076,1e-08,59525.0,59524.0,2.45447724]
[1723928288281,1e-08,59525.0,59524.0,2.58010099]
[1723928289500,1e-08,59525.0,59524.0,2.52120407]
[1723928290760,0.000824,59527.0,59526.0,1.277755]
[1723928291020,0.000824,59527.0,59526.0,2.1053118]
[1723928291438,0.000824,59527.0,59526.0,2.0047894]
[1723928291644,0.000824,59527.0,59526.0,2.16420651]
[1723928292068,0.000824,59527.0,59526.0,2.17820651]
[1723928292278,0.000824,59527.0,59526.0,2.19220651]
[1723928292513,0.000824,59527.0,59526.0,2.13331127]
[1723928292751,0.000824,59527.0,59526.0,2.13331101]
[1723928293162,0.000824,59527.0,59526.0,2.11931101]
[1723928293367,0.000824,59527.0,59526.0,2.05068453]
[1723928293584,0.000824,59527.0,59526.0,2.07868453]
[1723928294424,0.000824,59527.0,59526.0,2.20430828]
[1723928294636,0.000824,59527.0,59526.0,2.15841289]
[1723928294834,0.000824,59527.0,59526.0,2.20430828]
[1723928295050,0.000824,59527.0,59526.0,2.15841289]
[1723928295255,0.000824,59527.0,59526.0,2.20430828]
[1723928295460,0.000824,59527.0,59526.0,2.15841289]
[1723928295664,0.000824,59527.0,59526.0,2.20430828]
[1723928295872,0.000824,59527.0,59526.0,2.15841289]
[1723928296046,0.000824,59527.0,59526.0,2.20430828]
[1723928296274,0.000824,59527.0,59526.0,2.03278914]
[1723928296441,0.000824,59527.0,59526.0,2.07868453]
[1723928296649,0.000824,59527.0,59526.0,2.03278914]
[1723928296849,0.000824,59527.0,59526.0,2.07868453]
[1723928297044,0.000824,59527.0,59526.0,2.03278914]
[1723928297252,0.000824,59527.0,59526.0,2.07868453]
[1723928297454,0.000824,59527.0,59526.0,2.03278914]
[1723928297659,0.000824,59527.0,59526.0,2.07868453]
[1723928297857,0.000824,59527.0,59526.0,2.03278914]
[1723928298036,0.000824,59527.0,59526.0,2.07868453]
[1723928298402,0.000824,59527.0,59526.0,2.03278914]
[1723928298538,0.000824,59527.0,59526.0,2.07868453]
[1723928298735,0.000824,59527.0,59526.0,2.03278914]
[1723928298942,0.000824,59527.0,59526.0,2.07868453]
[1723928299143,0.000824,59527.0,59526.0,1.97301663]
[1723928299342,0.000824,59527.0,59526.0,2.03278901]
[1723928299568,0.000824,59527.0,59526.0,2.07868432]
[1723928299772,0.000824,59527.0,59526.0,2.03278901]
[1723928299970,0.000824,59527.0,59526.0,2.07868432]
[1723928300143,0.000824,59527.0,59526.0,2.03278901]
[1723928300494,0.000824,59527.0,59526.0,2.07867272]
[1723928300698,0.000824,59527.0,59526.0,2.03277741]
[1723928300898,0.000824,59527.0,59526.0,2.07867272]
[1723928301114,0.000824,59527.0,59526.0,2.03277741]
[1723928301324,0.000824,59527.0,59526.0,2.07867272]
[1723928301733,0.000824,59527.0,59526.0,2.07467272]
[1723928302774,0.000824,59527.0,59526.0,2.16857272]
[1723928303190,0.000824,59527.0,59526.0,2.10974555]
[1723928303399,0.000824,59527.0,59526.0,2.04277369]
[1723928303694,0.000824,59527.0,59526.0,2.04277451]
[1723928304149,0.000824,59527.0,59526.0,2.04277748]
[1723928304379,0.000824,59527.0,59526.0,2.04477748]
[1723928305072,0.000824,59527.0,59526.0,2.04277748]
[1723928305319,0.000824,59527.0,59526.0,2.0427775]
[1723928305552,0.081624,59527.0,59526.0,2.0417775]
[1723928306469,0.081624,59527.0,59526.0,1.98287958]
[1723928307915,0.081624,59527.0,59526.0,1.98287978]
[1723928309148,0.081624,59527.0,59526.0,1.73088978]
[1723928309354,0.144224,59527.0,59526.0,1.26199978]
[1723928309560,0.144224,59527.0,59526.0,1.25274437]
[1723928309766,0.144224,59527.0,59526.0,1.22348543]
[1723928310204,0.144224,59527.0,59526.0,1.02393089]
[1723928310620,0.144224,59527.0,59526.0,1.15197715]
[1723928311079,0.144224,59527.0,59526.0,1.15097715]
[1723928312424,0.144224,59527.0,59526.0,1.29107092]
[1723928312865,0.144224,59527.0,59526.0,1.16497715]
[1723928313277,0.144224,59527.0,59526.0,1.29106175]
[1723928314311,0.144224,59527.0,59526.0,1.29105007]
[1723928315369,0.144224,59527.0,59526.0,1.54304007]
[1723928315576,0.144224,59527.0,59526.0,1.38494006]
[1723928316240,0.144224,59527.0,59526.0,1.36367966]
[1723928316422,0.144224,59527.0,59526.0,1.38494128]
[1723928317053,0.144224,59527.0,59526.0,1.63693128]
[1723928318088,0.144224,59527.0,59526.0,1.38494128]
[1723928318541,0.144224,59527.0,59526.0,1.63693128]
[1723928319440,0.144224,59527.0,59526.0,1.51086685]
[1723928324292,0.144224,59527.0,59526.0,1.61168191]
[1723928327888,0.144224,59527.0,59526.0,1.13812662]
[1723928328108,0.144224,59527.0,59526.0,1.18853293]
[1723928328514,0.144224,59527.0,59526.0,1.18852999]
[1723928328957,0.144224,59527.0,59526.0,1.18853116]
[1723928329172,0.144224,59527.0,59526.0,1.16726837]
[1723928329388,0.144224,59527.0,59526.0,1.18853116]
[1723928330464,0.144224,59527.0,59526.0,1.13812779]
[1723928330677,0.144224,59527.0,59526.0,1.21373284]
[1723928330887,0.144224,59527.0,59526.0,1.13812779]
[1723928332611,0.144224,59527.0,59526.0,1.18852112]
[1723928332856,0.144224,59527.0,59526.0,1.13812779]
[1723928333072,0.144224,59527.0,59526.0,1.16725838]
[1723928333281,0.144224,59527.0,59526.0,1.13812746]
[1723928334360,0.144224,59527.0,59526.0,1.18852069]
[1723928334587,0.144224,59527.0,59526.0,1.18852063]
[1723928334792,0.144224,59527.0,59526.0,1.13812746]
[1723928335209,0.144224,59527.0,59526.0,1.18852075]
[1723928335454,0.144224,59527.0,59526.0,1.13812746]
[1723928336103,0.144224,59527.0,59526.0,1.18852084]
[1723928336712,0.144224,59527.0,59526.0,1.13812746]
[1723928336919,0.144224,59527.0,59526.0,1.1885213]
[1723928337141,0.144224,59527.0,59526.0,1.116865]
[1723928337348,0.144224,59527.0,59526.0,1.1381274]
[1723928338386,0.144224,59527.0,59526.0,1.21371919]
[1723928338597,0.144224,59527.0,59526.0,1.1381274]
[1723928339187,0.144224,59527.0,59526.0,1.18852436]
[1723928339406,0.144224,59527.0,59526.0,1.1381274]
[1723928339610,0.144224,59527.0,59526.0,1.21371919]
[1723928339723,0.144224,59527.0,59526.0,1.1381274]
[1723928339934,0.144224,59527.0,59526.0,1.18852465]
[1723928340550,0.144224,59527.0,59526.0,1.09462644]
[1723928340754,0.144224,59527.0,59526.0,1.07336404]
[1723928340954,0.144224,59527.0,59526.0,1.0946267]
[1723928341167,0.144224,59527.0,59526.0,0.84263855]
[1723928341602,0.144224,59527.0,59526.0,0.06226266]
[1723928342056,0.144224,59527.0,59526.0,0.041]
[1723928342529,0.270217,59527.0,59526.0,0.041]
[1723928344739,0.144224,59527.0,59526.0,0.041]
[1723928344959,0.144224,59527.0,59526.0,0.027]
[1723928345406,0.144224,59527.0,59526.0,0.03]
[1723928346128,0.270217,59527.0,59526.0,0.003]
[1723928346362,0.270217,59527.0,59526.0,0.005]
[1723928346840,0.270217,59527.0,59526.0,0.007]
[1723928347082,0.270217,59527.0,59526.0,0.004]
[1723928347516,0.270217,59527.0,59526.0,0.007]
[1723928356307,0.868089,59527.0,59526.0,0.007]
[1723928357184,0.520185,59526.0,59525.0,0.0009075]
[1723928364775,0.772175,59526.0,59525.0,0.0009075]
[1723928364986,1.024165,59526.0,59525.0,0.0009075]
[1723928374974,1.02499,59526.0,59525.0,0.0009075]
[1723928375183,1.02499,59526.0,59525.0,0.0019075]
[1723928380399,1.11889,59526.0,59525.0,0.0019075]
[1723928380837,0.95999,59526.0,59525.0,0.0019075]
[1723928381467,0.708,59526.0,59525.0,0.0019075]
[1723928382082,0.6308,59526.0,59525.0,0.0019075]
[1723928390736,0.6931,59526.0,59525.0,0.0019075]
[1723928390952,0.7752,59526.0,59525.0,0.0019075]
[1723928391376,0.8691,59526.0,59525.0,0.0019075]
[1723928393579,1.12109,59526.0,59525.0,0.0019075]
[1723928395510,1.12409,59526.0,59525.0,0.0019075]
[1723928396355,1.19949847,59526.0,59525.0,0.0019075]
[1723928396781,1.12409,59526.0,59525.0,0.0019075]
[1723928397426,1.12109,59526.0,59525.0,0.0019075]
[1723928398069,1.196502,59526.0,59525.0,0.0019075]
[1723928398494,1.12109,59526.0,59525.0,0.0019075]
[1723928398709,1.196502,59526.0,59525.0,0.0019075]
[1723928401496,1.12109,59526.0,59525.0,0.0019075]
[1723928401923,1.196502,59526.0,59525.0,0.0019075]
[1723928402365,1.102602,59526.0,59525.0,0.0019075]
[1723928402574,1.12109,59526.0,59525.0,0.0019075]
[1723928402784,1.196502,59526.0,59525.0,0.0019075]
[1723928403249,1.12109,59526.0,59525.0,0.0019075]
[1723928404118,1.196502,59526.0,59525.0,0.0019075]
[1723928404368,1.12109,59526.0,59525.0,0.0019075]
[1723928407572,1.196502,59526.0,59525.0,0.0019075]
[1723928409273,1.12109,59526.0,59525.0,0.0019075]
[1723928409937,1.14745192,59526.0,59525.0,0.0019075]
[1723928411200,1.22286392,59526.0,59525.0,0.0019075]
[1723928412062,1.22288142,59526.0,59525.0,0.0019075]
[1723928414167,1.22288363,59526.0,59525.0,0.0019075]
[1723928414612,1.24802754,59526.0,59525.0,0.0019075]
[1723928415680,1.14745192,59526.0,59525.0,0.0019075]
[1723928415899,1.24803061,59526.0,59525.0,0.0019075]
[1723928416546,1.24803059,59526.0,59525.0,0.0019075]
[1723928416969,1.14745192,59526.0,59525.0,0.0019075]
[1723928417407,1.22288772,59526.0,59525.0,0.0019075]
[1723928418705,1.22289042,59526.0,59525.0,0.0019075]
[1723928422832,1.00305192,59526.0,59525.0,0.0019075]
[1723928423044,0.97669,59526.0,59525.0,0.0019075]
[1723928431499,0.7247,59526.0,59525.0,0.0019075]
[1723928431753,0.12682,59526.0,59525.0,0.1436075]
[1723928432881,0.37881,59526.0,59525.0,0.1436075]
[1723928434200,0.6308,59526.0,59525.0,0.1436075]
[1723928451053,0.6308,59526.0,59525.0,0.0019075]
[1723928459679,0.37881,59526.0,59525.0,0.0019075]
[1723928459890,0.000825,59526.0,59525.0,0.1445075]
[1723928460100,0.12682,59526.0,59525.0,0.1445075]
[1723928460302,0.000825,59526.0,59525.0,0.1445075]
[1723928461143,0.000825,59526.0,59525.0,0.1435075]
[1723928461358,0.001825,59526.0,59525.0,0.1435075]
[1723928466240,0.001825,59526.0,59525.0,0.14396311]
[1723928477271,0.12782,59526.0,59525.0,0.14396311]
[1723928479463,0.001825,59526.0,59525.0,0.14396311]
[1723928484476,0.001825,59526.0,59525.0,0.14496311]
[1723928485281,0.000825,59526.0,59525.0,0.14496311]
[1723928491120,0.000825,59526.0,59525.0,0.52295411]
[1723928491324,0.000825,59526.0,59525.0,0.27096011]
[1723928494105,0.000825,59526.0,59525.0,0.86884811]
[1723928494339,0.000825,59526.0,59525.0,1.36408388]
[1723928494584,0.000825,59526.0,59525.0,1.31366095]
[1723928495582,0.000825,59526.0,59525.0,1.38707094]
[1723928495824,0.000825,59526.0,59525.0,1.39507094]
[1723928496066,0.000825,59526.0,59525.0,1.39707094]
[1723928496303,0.000825,59526.0,59525.0,1.34666095]
[1723928496543,0.000825,59526.0,59525.0,1.39506691]
[1723928497031,0.000825,59526.0,59525.0,1.40406691]
[1723928497749,0.000825,59526.0,59525.0,1.40406569]
[1723928500236,0.000825,59526.0,59525.0,1.40406063]
[1723928504668,0.000825,59526.0,59525.0,1.40405959]
[1723928509945,0.000825,59526.0,59525.0,1.38279651]
[1723928514019,0.000825,59526.0,59525.0,1.33239665]
[1723928514223,0.000825,59526.0,59525.0,1.38279118]
[1723928517572,0.000825,59526.0,59525.0,1.40405426]
[1723928518197,0.000825,59526.0,59525.0,1.38279118]
[1723928518404,0.000825,59526.0,59525.0,1.40405426]
[1723928519238,0.000825,59526.0,59525.0,1.35365973]
[1723928519639,0.000825,59526.0,59525.0,1.42925153]
[1723928520276,0.000825,59526.0,59525.0,1.80200961]
[1723928520896,0.000825,59526.0,59525.0,1.42925153]
[1723928521099,0.000825,59526.0,59525.0,1.52925153]
[1723928521313,0.000825,59526.0,59525.0,2.15400501]
[1723928521541,0.000825,59526.0,59525.0,2.2366599]
[1723928521745,0.000825,59526.0,59525.0,2.12190785]
[1723928521945,0.000825,59526.0,59525.0,2.11790785]
[1723928522156,0.000825,59526.0,59525.0,2.26910562]
[1723928522362,0.000825,59526.0,59525.0,2.32800243]
[1723928522562,0.000825,59526.0,59525.0,2.15880466]
[1723928522768,0.000825,59526.0,59525.0,2.11390785]
[1723928522992,0.000825,59526.0,59525.0,2.09990785]
[1723928524032,0.000825,59526.0,59525.0,2.11390785]
[1723928524602,0.000825,59526.0,59525.0,2.12790785]
[1723928524982,0.000825,59526.0,59525.0,2.11390648]
[1723928525197,0.000825,59526.0,59525.0,2.09990648]
[1723928525423,0.000825,59526.0,59525.0,2.06812898]
[1723928525650,0.000825,59526.0,59525.0,2.12990383]
[1723928526106,0.000825,59526.0,59525.0,2.12790383]
[1723928526360,0.000825,59526.0,59525.0,2.12788082]
[1723928527292,0.000825,59526.0,59525.0,2.12788077]
[1723928527493,0.000825,59526.0,59525.0,2.12988077]
[1723928527863,0.000825,59526.0,59525.0,2.13188077]
[1723928528290,0.000825,59526.0,59525.0,2.12788077]
[1723928529258,0.000825,59526.0,59525.0,2.12988062]
[1723928530195,0.000825,59526.0,59525.0,2.03398062]
[1723928530414,0.000825,59526.0,59525.0,2.24453564]
[1723928530820,0.000825,59526.0,59525.0,2.08936633]
[1723928531627,0.000825,59526.0,59525.0,2.1278813]
[1723928532036,0.000825,59526.0,59525.0,2.11862536]
[1723928532237,0.000825,59526.0,59525.0,2.2445364]
[1723928533169,0.000825,59526.0,59525.0,2.24453699]
[1723928534478,0.000825,59526.0,59525.0,2.11862595]
[1723928535309,0.000825,59526.0,59525.0,1.74591063]
[1723928535531,0.000825,59526.0,59525.0,2.12063878]
[1723928536547,0.000825,59526.0,59525.0,2.12263878]
[1723928536763,0.000825,59526.0,59525.0,2.13189431]
[1723928537179,0.000825,59526.0,59525.0,2.12263878]
[1723928537387,0.000825,59526.0,59525.0,2.13189431]
[1723928537805,0.000825,59526.0,59525.0,2.131894]
[1723928539321,0.000825,59526.0,59525.0,2.1318938]
[1723928540148,0.000825,59526.0,59525.0,2.1278938]
[1723928540351,0.000825,59526.0,59525.0,2.1298938]
[1723928540554,0.000825,59526.0,59525.0,2.1278938]
[1723928541382,0.000825,59526.0,59525.0,2.12789332]
[1723928542214,0.000825,59526.0,59525.0,2.18679046]
[1723928542422,0.000825,59526.0,59525.0,2.18879046]
[1723928542881,0.000825,59526.0,59525.0,2.19079046]
[1723928544313,0.000825,59526.0,59525.0,2.22446046]
[1723928544717,0.000825,59526.0,59525.0,2.22046046]
[1723928544918,0.000825,59526.0,59525.0,2.20646046]
[1723928545317,0.000825,59526.0,59525.0,2.0877888]
[1723928545542,0.000825,59526.0,59525.0,2.22045919]
[1723928547210,0.000825,59526.0,59525.0,2.16156247]
[1723928548941,0.000825,59526.0,59525.0,1.78883432]
[1723928549141,0.000825,59526.0,59525.0,2.16154015]
[1723928549342,0.000825,59526.0,59525.0,2.15228496]
[1723928549553,0.000825,59526.0,59525.0,2.16354015]
[1723928550976,0.000825,59526.0,59525.0,2.15428496]
[1723928551178,0.000825,59526.0,59525.0,2.16354015]
[1723928551404,0.000825,59526.0,59525.0,2.16354014]
[1723928551879,0.000825,59526.0,59525.0,2.16154014]
[1723928553429,0.139325,59526.0,59525.0,1.89037014]
[1723928553642,0.139325,59526.0,59525.0,1.67427529]
[1723928553839,0.139325,59526.0,59525.0,1.74133705]
[1723928554048,0.139325,59526.0,59525.0,1.70689111]
[1723928554243,0.139325,59526.0,59525.0,1.67889111]
[1723928554423,0.139325,59526.0,59525.0,1.69289111]
[1723928554630,0.139325,59526.0,59525.0,1.70689111]
[1723928554828,0.139325,59526.0,59525.0,1.72989111]
[1723928555041,0.139325,59526.0,59525.0,1.71589111]
[1723928556255,0.139325,59526.0,59525.0,1.61512351]
[1723928557758,0.139325,59526.0,59525.0,1.61512476]
[1723928558101,0.139325,59526.0,59525.0,1.6866576]
[1723928558229,0.139325,59526.0,59525.0,1.68669808]
[1723928559483,0.139325,59526.0,59525.0,1.21315853]
[1723928560115,0.114325,59526.0,59525.0,1.66152068]
[1723928560916,0.114325,59526.0,59525.0,1.40952668]
[1723928561031,0.114325,59526.0,59525.0,0.78960999]
[1723928561442,0.114325,59526.0,59525.0,0.68960999]
[1723928562468,0.114325,59526.0,59525.0,0.66834811]
[1723928563586,0.114325,59526.0,59525.0,0.68961217]
[1723928563931,0.114325,59526.0,59525.0,0.68961215]
[1723928564161,0.11515,59526.0,59525.0,0.68961215]
[1723928564398,0.11515,59526.0,59525.0,0.66834811]
[1723928565023,0.11515,59526.0,59525.0,0.68961209]
[1723928565412,0.11515,59526.0,59525.0,0.66834811]
[1723928565938,0.11515,59526.0,59525.0,0.41635411]
[1723928565939,0.14515,59526.0,59525.0,0.41635411]
[1723928580832,0.11515,59526.0,59525.0,0.41635411]
[1723928581069,0.077025,59526.0,59525.0,0.43761781]
[1723928581507,0.077025,59526.0,59525.0,0.51025411]
[1723928581739,0.077025,59526.0,59525.0,0.53151781]
[1723928584076,0.077025,59526.0,59525.0,0.78351181]
[1723928584275,0.077025,59526.0,59525.0,0.53151781]
[1723928586087,0.077025,59526.0,59525.0,0.78351181]
[1723928586246,0.077025,59526.0,59525.0,0.53151781]
[1723928586441,0.077025,59526.0,59525.0,0.53151739]
[1723928588562,0.077025,59526.0,59525.0,0.84591138]
[1723928588563,0.000825,59526.0,59525.0,0.84591138]
[1723928588767,0.000825,59526.0,59525.0,1.37405992]
[1723928589119,0.000825,59526.0,59525.0,1.47405992]
[1723928589321,0.000825,59526.0,59525.0,1.52440199]
[1723928590382,0.000825,59526.0,59525.0,1.52440119]
[1723928592084,0.000825,59526.0,59525.0,1.49940119]
[1723928592429,0.000825,59526.0,59525.0,1.93349943]
[1723928592631,0.000825,59526.0,59525.0,1.95075959]
[1723928593460,0.000825,59526.0,59525.0,1.85007544]
[1723928594028,0.000825,59526.0,59525.0,1.96481779]
[1723928594155,0.000825,59526.0,59525.0,1.77017532]
[1723928594357,0.000825,59526.0,59525.0,1.96482812]
[1723928594556,0.000825,59526.0,59525.0,1.93556728]
[1723928594982,0.000825,59526.0,59525.0,1.98992976]
[1723928596714,0.000825,59526.0,59525.0,1.99092976]
[1723928597263,0.000825,59526.0,59525.0,1.86507457]
[1723928598293,0.000825,59526.0,59525.0,1.99105283]
[1723928598496,0.000825,59526.0,59525.0,1.86507426]
[1723928599058,0.006549,59532.0,59531.0,0.629922]
[1723928599255,0.006549,59532.0,59531.0,1.33739868]
[1723928599460,0.006549,59532.0,59531.0,1.93729611]
[1723928599665,0.007849,59532.0,59531.0,2.06555418]
[1723928599871,0.006549,59532.0,59531.0,2.06555418]
[1723928600085,0.006549,59532.0,59531.0,2.08666094]
[1723928600295,0.006549,59532.0,59531.0,2.09166094]
[1723928600491,0.006549,59532.0,59531.0,2.09366094]
[1723928600917,0.006549,59532.0,59531.0,2.09766094]
[1723928601610,0.006549,59532.0,59531.0,2.10466064]
[1723928601958,0.006549,59532.0,59531.0,2.11866064]
[1723928602386,0.006549,59532.0,59531.0,2.10940619]
[1723928602827,0.006549,59532.0,59531.0,2.11866061]
[1723928603034,0.006549,59532.0,59531.0,2.10940509]
[1723928603375,0.006549,59532.0,59531.0,2.23524082]
[1723928603777,0.006549,59532.0,59531.0,2.23724082]
[1723928603976,0.006549,59532.0,59531.0,2.23324082]
[1723928604424,0.006549,59532.0,59531.0,2.10740509]
[1723928605551,0.006549,59532.0,59531.0,2.20803905]
[1723928606722,0.006549,59532.0,59531.0,2.20803916]
[1723928606918,0.006549,59532.0,59531.0,2.21003916]
[1723928607118,0.006549,59532.0,59531.0,2.20997464]
[1723928607931,0.006549,59532.0,59531.0,2.20797464]
[1723928608308,0.006549,59532.0,59531.0,2.10736042]
[1723928609006,0.006549,59532.0,59531.0,2.13036042]
[1723928610009,0.006549,59532.0,59531.0,2.13036038]
[1723928610413,0.006549,59532.0,59531.0,2.20579259]
[1723928610614,0.006549,59532.0,59531.0,2.20779259]
[1723928611042,0.006549,59532.0,59531.0,2.13036038]
[1723928611366,0.006549,59532.0,59531.0,2.20578682]
[1723928611571,0.006549,59532.0,59531.0,2.20578698]
[1723928612183,0.006549,59532.0,59531.0,2.18452632]
[1723928612382,0.006549,59532.0,59531.0,2.20578482]
[1723928612609,0.006549,59532.0,59531.0,2.13035815]
[1723928613026,0.006549,59532.0,59531.0,2.20578495]
[1723928613227,0.006549,59532.0,59531.0,2.20978495]
[1723928616172,0.006549,59532.0,59531.0,2.20578495]
[1723928616588,0.006549,59532.0,59531.0,2.20578308]
[1723928617407,0.006549,59532.0,59531.0,2.45975208]
[1723928617609,0.000825,59538.0,59537.0,1.365948]
[1723928617847,0.000825,59538.0,59537.0,1.68176104]
[1723928618051,0.000825,59538.0,59537.0,1.76129681]
[1723928619071,0.000825,59538.0,59537.0,1.68176104]
[1723928619907,0.000825,59538.0,59537.0,1.69576104]
[1723928620444,0.000825,59538.0,59537.0,1.69575988]
[1723928621721,0.000825,59538.0,59537.0,1.70975988]
[1723928622462,0.000825,59538.0,59537.0,1.73901576]
[1723928623151,0.000825,59538.0,59537.0,1.78929122]
[1723928623781,0.000825,59538.0,59537.0,1.74888025]
[1723928625187,0.000825,59538.0,59537.0,1.79915571]
[1723928625578,0.000825,59538.0,59537.0,1.79905807]
[1723928626632,0.000825,59538.0,59537.0,1.77780066]
[1723928626844,0.000825,59538.0,59537.0,1.79905793]
[1723928628061,0.000825,59538.0,59537.0,1.75802568]
[1723928628296,0.000825,59538.0,59537.0,1.79906166]
[1723928628496,0.000825,59538.0,59537.0,1.80831554]
[1723928629326,0.000825,59538.0,59537.0,1.75791065]
[1723928629514,0.000825,59538.0,59537.0,1.80831568]
[1723928630680,0.000825,59538.0,59537.0,1.75802594]
[1723928631369,0.000825,59538.0,59537.0,1.83345495]
[1723928631794,0.000825,59538.0,59537.0,1.75802594]
[1723928632504,0.000825,59538.0,59537.0,1.83345495]
[1723928633518,0.000825,59538.0,59537.0,2.20610783]
[1723928633768,0.000825,59538.0,59537.0,2.1557028]
[1723928633984,0.000825,59538.0,59537.0,2.13067882]
[1723928634627,0.000825,59538.0,59537.0,2.23125084]
[1723928634833,0.000825,59538.0,59537.0,2.10152987]
[1723928635045,0.000825,59538.0,59537.0,2.13067751]
[1723928635379,0.000825,59538.0,59537.0,2.23133914]
[1723928636757,0.000825,59538.0,59537.0,2.15543914]
[1723928637483,0.000825,59538.0,59537.0,2.05477751]
[1723928637937,0.000825,59538.0,59537.0,2.02762987]
[1723928638142,0.000825,59538.0,59537.0,2.13941125]
[1723928638480,0.000825,59538.0,59537.0,2.26523829]
[1723928638682,0.000825,59538.0,59537.0,2.13941125]
[1723928639364,0.000825,59538.0,59537.0,2.13940399]
[1723928640308,0.000825,59538.0,59537.0,2.19829235]
[1723928641060,0.000825,59538.0,59537.0,2.19829189]
[1723928642768,0.000825,59538.0,59537.0,1.80014789]
[1723928642967,0.142725,59538.0,59537.0,1.74126378]
[1723928645184,0.142725,59538.0,59537.0,1.7412648]
[1723928646815,0.142725,59538.0,59537.0,1.7402648]
[1723928647449,0.142725,59538.0,59537.0,1.74027121]
[1723928648053,0.000825,59538.0,59537.0,1.88587121]
[1723928648454,0.000825,59538.0,59537.0,1.80767121]
[1723928648660,0.000825,59538.0,59537.0,1.74127121]
[1723928648833,0.000825,59538.0,59537.0,1.74027121]
[1723928649162,0.000825,59538.0,59537.0,1.74027083]
[1723928649364,0.000825,59538.0,59537.0,1.74127083]
[1723928649491,0.000825,59538.0,59537.0,1.74027083]
[1723928650342,0.000825,59538.0,59537.0,1.74027046]
[1723928650889,0.063125,59538.0,59537.0,1.79915834]
[1723928651090,0.063125,59538.0,59537.0,1.74027046]
[1723928651285,0.000825,59538.0,59537.0,1.6135061]
[1723928651488,0.000825,59538.0,59537.0,1.42419709]
[1723928651489,0.080425,59538.0,59537.0,1.42419709]
[1723928651684,0.142725,59538.0,59537.0,1.42419709]
[1723928651984,0.142725,59538.0,59537.0,1.32332675]
[1723928652197,0.142725,59538.0,59537.0,1.38498128]
[1723928652392,0.142725,59538.0,59537.0,1.00732626]
[1723928652694,0.142725,59538.0,59537.0,1.02032626]
[1723928654471,0.142725,59538.0,59537.0,0.94467173]
[1723928654675,0.142725,59538.0,59537.0,0.69272773]
[1723928656581,0.142725,59538.0,59537.0,0.74314724]
[1723928656995,0.142725,59538.0,59537.0,0.99509124]
[1723928657611,0.142725,59538.0,59537.0,0.99509366]
[1723928659067,0.142725,59538.0,59537.0,1.31737232]
[1723928661549,0.142725,59538.0,59537.0,1.31737149]
[1723928665777,0.142725,59538.0,59537.0,1.31735409]
[1723928666512,0.142725,59538.0,59537.0,1.41817276]
[1723928667152,0.142725,59538.0,59537.0,1.41817266]
[1723928670448,0.142725,59538.0,59537.0,1.41816937]
[1723928674010,0.142725,59538.0,59537.0,1.39691072]
[1723928674162,0.142725,59538.0,59537.0,1.4181693]
[1723928674377,0.142725,59538.0,59537.0,1.39691072]
[1723928674578,0.142725,59538.0,59537.0,1.4181693]
[1723928675181,0.142725,59538.0,59537.0,1.41817237]
[1723928675627,0.142725,59538.0,59537.0,1.41817242]
[1723928677265,0.142725,59538.0,59537.0,1.31735095]
[1723928677490,0.142725,59538.0,59537.0,1.41817344]
[1723928678027,0.142725,59538.0,59537.0,1.31735095]
[1723928678438,0.080425,59538.0,59537.0,1.41817804]
[1723928678690,0.080425,59538.0,59537.0,1.41817784]
[1723928679072,0.080425,59538.0,59537.0,1.31735075]
[1723928679365,0.080425,59538.0,59537.0,1.41817747]
[1723928679694,0.080425,59538.0,59537.0,1.41817856]
[1723928680297,0.080425,59538.0,59537.0,1.41817855]
[1723928680642,0.080425,59538.0,59537.0,1.31734912]
[1723928681082,0.000825,59538.0,59537.0,1.31734912]
[1723928682225,0.000825,59538.0,59537.0,1.34633153]
[1723928682468,0.000825,59538.0,59537.0,1.47236832]
[1723928682675,0.000825,59538.0,59537.0,1.72431232]
[1723928682880,0.000825,59538.0,59537.0,1.71449227]
[1723928683099,0.000825,59538.0,59537.0,1.7527278]
[1723928683511,0.000825,59538.0,59537.0,1.6701278]
[1723928685485,0.000825,59538.0,59537.0,1.67012789]
[1723928686281,0.000825,59538.0,59537.0,1.66087383]
[1723928686715,0.000825,59538.0,59537.0,1.67012788]
[1723928686920,0.000825,59538.0,59537.0,1.60752788]
[1723928687126,0.000825,59538.0,59537.0,1.59827383]
[1723928687678,0.000825,59538.0,59537.0,1.5982746]
[1723928688402,0.000825,59538.0,59537.0,1.60752863]
[1723928688622,0.000825,59538.0,59537.0,1.6075284]
[1723928688927,0.000825,59538.0,59537.0,1.59827437]
[1723928689309,0.000825,59538.0,59537.0,1.60752844]
[1723928689508,0.000825,59538.0,59537.0,1.59827437]
[1723928690570,0.000825,59538.0,59537.0,1.60752841]
[1723928690920,0.000825,59538.0,59537.0,1.5480347]
[1723928691145,0.000825,59538.0,59537.0,1.6075277]
[1723928692662,0.083025,59538.0,59537.0,1.6075277]
[1723928692987,0.083025,59538.0,59537.0,1.59827374]
[1723928693393,0.083025,59538.0,59537.0,1.59826205]
[1723928693845,0.083025,59538.0,59537.0,1.72433571]
[1723928694035,0.083025,59538.0,59537.0,1.59826205]
[1723928694242,0.083025,59538.0,59537.0,1.69535528]
[1723928695065,0.083025,59538.0,59537.0,1.54802301]